[Event "EYCC Open U12 2018"]
[Site "Riga"]
[Date "2018.08.22"]
[Round "3"]
[White "Safin, Robert"]
[Black "Samadov, Read"]
[Result "1-0"]
[ECO "D14"]
[WhiteElo "2156"]
[BlackElo "1997"]
[Annotator "NA"]
[PlyCount "115"]
[EventDate "2018.08.20"]
[EventType "swiss"]
[EventCountry "LAT"]
[SourceTitle "playchess.com"]
[Source "ChessBase"]
[SourceQuality "1"]
[TimeControl "40/5400+30:1800+30"]

1. d4 {[%emt 0:00:00]} d5 {[%emt 0:00:00]} 2. c4 {[%emt 0:00:00]} c6 {[%emt 0:00:00]} 3. cxd5 {[%emt 0:00:00]} cxd5 {[%emt 0:00:00]} 4. Nf3 {[%emt 0:00:00]} Nf6 {[%emt 0:00:08]} 5. Nc3 {[%emt 0:00:00]} Nc6 {[%emt 0:00:11]} 6. Bf4 {[%emt 0:00:00]} Bf5 {[%emt 0:00:18]} 7. e3 {[%emt 0:00:16] LiveBook: 4226 Games} a6 {[%emt 0:02:25]} 8. Be2 {[%emt 0:01:05]} e6 {[%emt 0:01:56]} 9. Nh4 {[%emt 0:01:24] D13: Slav Defence: Exchange variation without ...Bf5} (9. Ne5 Nxe5 10. Bxe5 Nd7 11. Bg3 Be7 12. O-O O-O 13. Rc1 Rc8 14. Bd3 Bxd3 15. Qxd3 Qa5 16. Rc2 Rc6 17. Rfc1 Rfc8 18. f3 Bb4 19. e4 Bxc3 20. bxc3 Nb6 21. h4 {0-1 (42) Vallejo Pons,F (2711)-Andreikin,D (2737) Tallinn 2016}) 9... Bg6 {[%emt 0:01:56]} 10. Nxg6 {[%emt 0:00:15]} hxg6 {[%emt 0:00:13]} 11. h3 {[%emt 0:00:39]} Bd6 {[%emt 0:02:08]} 12. Bxd6 {[%emt 0:00:15]} Qxd6 {[%emt 0:00:07]} 13. Rc1 {[%emt 0:00:56]} O-O $146 {[%emt 0:01:43]} ({Predecessor:} 13... Rc8 14. O-O O-O 15. Na4 Nd7 16. Nc5 Nxc5 17. Rxc5 {½-½ (46) Harutyunyan,T-Cruz Lledo,P (1887) Benidorm 2006}) 14. O-O {[%emt 0:00:27]} Rfc8 {[%emt 0:09:08]} 15. Na4 {[%emt 0:01:03]} Nd7 {[%emt 0:08:09]} 16. Qd2 {[%emt 0:03:35]} Rc7 {[%emt 0:08:16]} 17. Nc5 {[%emt 0:00:50]} Na7 {[%emt 0:05:38]} 18. b4 {[%emt 0:11:45]} Rac8 {[%emt 0:05:46]} 19. Bd3 {[%emt 0:09:26]} a5 {[%emt 0:17:31]} 20. Nxd7 {[%emt 0:01:45]} Qxd7 {[%emt 0:01:22]} 21. bxa5 {[%emt 0:06:23]} Qa4 {[%emt 0:05:43]} 22. Rb1 {[%emt 0:00:54]} Nc6 {[%emt 0:02:07]} 23. Rb5 {[%emt 0:00:57]} Nd8 $16 {[%emt 0:08:45]} 24. Rfb1 {[%emt 0:03:58]} Rc3 {[%emt 0:01:50]} 25. Kh2 {[%emt 0:01:41]} Qa3 {[%emt 0:01:11]} 26. R1b3 {[%emt 0:00:29]} Qd6+ {[%emt 0:00:31]} 27. g3 {[%emt 0:00:10]} Rc1 {[%emt 0:03:09]} 28. Rb1 {[%emt 0:00:36]} Rxb1 {[%emt 0:01:14]} 29. Rxb1 {[%emt 0:00:07]} Ra8 {[%emt 0:04:39]} 30. Qc3 {[%emt 0:01:34]} Nc6 {[%emt 0:01:53]} 31. a6 {[%emt 0:02:07]} bxa6 {[%emt 0:01:59]} 32. Rb6 {[%emt 0:00:08]} Rc8 {[%emt 0:00:08]} 33. Bxa6 {[%emt 0:02:40]} Ne7 {[%emt 0:01:14]} 34. Rxd6 {[%emt 0:03:19]} Rxc3 {[%emt 0:00:01]} 35. a4 {[%emt 0:00:31]} Nf5 {[%emt 0:00:56]} 36. Rd8+ {[%emt 0:01:08]} Kh7 {[%emt 0:00:01]} 37. Rd7 {[%emt 0:00:44]} Kg8 {[%emt 0:02:03]} 38. Bb5 {[%emt 0:03:11]} Rc2 {[%emt 0:00:28]} 39. Kg1 {[%emt 0:05:14]} Rc1+ {[%emt 0:00:14]} 40. Kg2 {[%emt 0:00:00]} Rc2 {[%emt 0:00:00]} 41. Kf3 {[%emt 0:01:22]} Rc3 {[%emt 0:02:04]} 42. Ke2 {[%emt 0:01:27]} Rc2+ {[%emt 0:02:16]} 43. Ke1 {[%emt 0:00:22]} Ra2 {[%emt 0:01:36]} 44. Rd8+ {[%emt 0:03:16]} Kh7 {[%emt 0:00:03]} 45. Be8 {[%emt 0:00:23]} f6 {[%emt 0:04:55]} 46. Bf7 {[%emt 0:02:46]} Ra1+ {[%emt 0:00:58]} 47. Ke2 {[%emt 0:00:09]} Ra2+ {[%emt 0:00:24]} 48. Kf3 {[%emt 0:01:00]} Ra3 {[%emt 0:01:49]} 49. Kg2 {[%emt 0:00:07]} Ra2 {[%emt 0:07:55]} 50. Bg8+ {[%emt 0:00:07]} Kh6 {[%emt 0:00:12]} 51. Bxe6 {[%emt 0:00:34]} Kh7 {[%emt 0:00:19]} 52. Bxf5 {[%emt 0:00:36]} gxf5 {[%emt 0:00:05]} 53. Rxd5 {[%emt 0:00:03]} Rxa4 {[%emt 0:00:08]} 54. Rxf5 {[%emt 0:00:03]} Kg6 {[%emt 0:00:15]} 55. Rb5 {[%emt 0:00:05]} Ra2 {[%emt 0:00:05]} 56. g4 {[%emt 0:00:06]} Rd2 {[%emt 0:00:15]} 57. Kg3 {[%emt 0:00:06]} Re2 {[%emt 0:00:05]} 58. Rb3 {[%emt 0:00:16]} 1-0

[Event "EYCC Open U12 2018"]
[Site "Riga"]
[Date "2018.08.22"]
[Round "3"]
[White "Grebnev, Aleksey"]
[Black "Tunsjo, Axel"]
[Result "1-0"]
[ECO "B42"]
[WhiteElo "2143"]
[BlackElo "1973"]
[Annotator "NA"]
[PlyCount "43"]
[EventDate "2018.08.20"]
[EventType "swiss"]
[EventCountry "LAT"]
[SourceTitle "playchess.com"]
[Source "ChessBase"]
[SourceQuality "1"]
[TimeControl "40/5400+30:1800+30"]

1. e4 {[%emt 0:00:09]} c5 {[%emt 0:00:00]} 2. Nf3 {[%emt 0:00:08]} e6 {[%emt 0:00:08]} 3. d4 {[%emt 0:00:09]} cxd4 {[%emt 0:00:39]} 4. Nxd4 {[%emt 0:02:49]} a6 {[%emt 0:00:28]} 5. Bd3 {[%emt 0:00:40]} Nc6 {[%emt 0:06:20]} 6. Nxc6 {[%emt 0:00:47]} dxc6 {[%emt 0:00:45]} 7. O-O {[%emt 0:00:27]} Bc5 {[%emt 0:01:53] B42: Sicilian: Kan Variation: 5 Bd3} (7... e5 8. a4 Nf6 9. Nd2 Bc5 10. Qf3 O-O 11. Nc4 Re8 12. a5 Qe7 13. Bg5 h6 14. Bd2 Bg4 15. Qg3 Rad8 16. Rae1 Kh8 {½-½ (68) Kovalenko,I (2626)-Laurusas,T (2428) Tallinn 2018}) 8. Qg4 $146 {[%emt 0:03:20]} ({Predecessor:} 8. Qh5 Be7 9. e5 g6 10. Qe2 h5 11. Rd1 Qb6 12. Nd2 Nh6 13. Nc4 Qc7 14. Nd6+ Bxd6 15. exd6 Qd7 16. Qe5 f6 17. Qxf6 Rf8 18. Bxg6+ Nf7 19. Bg5 b6 20. Re1 Qxd6 21. Rad1 {1-0 (21) Tarasov,D (2165)-Sumaneev,D (2450) Kirov 2014}) 8... Bd4 {[%emt 0:13:00]} 9. c3 {[%emt 0:08:16]} Bf6 {[%emt 0:00:37]} 10. Rd1 {[%emt 0:00:19]} e5 {[%emt 0:01:12]} 11. Qe2 {[%emt 0:00:27]} Qc7 {[%emt 0:01:10]} 12. a4 {[%emt 0:01:13]} Ne7 {[%emt 0:04:43]} 13. Be3 {[%emt 0:01:27]} O-O {[%emt 0:02:56]} 14. a5 {[%emt 0:01:07]} Ng6 {[%emt 0:03:11]} 15. g3 {[%emt 0:00:09]} Bd8 {[%emt 0:03:47]} 16. Na3 {[%emt 0:01:03]} Be6 {[%emt 0:02:53]} 17. b4 {[%emt 0:02:31]} f5 {[%emt 0:08:36]} 18. exf5 {[%emt 0:00:38]} Bxf5 {[%emt 0:01:13]} 19. Bxf5 {[%emt 0:00:14]} Rxf5 {[%emt 0:00:40]} 20. Nc4 {[%emt 0:00:05]} Rf6 $18 {[%emt 0:23:51]} (20... Be7 21. Nb6 Re8) 21. Nb6 {[%emt 0:01:00]} Rb8 {[%emt 0:02:49]} 22. Rd7 {[%emt 0:00:17]} 1-0

[Event "EYCC Open U12 2018"]
[Site "Riga"]
[Date "2018.08.22"]
[Round "3"]
[White "Mekhane, Adam"]
[Black "Makoveev, Ilya"]
[Result "0-1"]
[ECO "B90"]
[WhiteElo "2008"]
[BlackElo "2249"]
[Annotator "NA"]
[PlyCount "66"]
[EventDate "2018.08.20"]
[EventType "swiss"]
[EventCountry "LAT"]
[SourceTitle "playchess.com"]
[Source "ChessBase"]
[SourceQuality "1"]
[TimeControl "40/5400+30:1800+30"]

1. e4 {[%emt 0:00:00]} c5 {[%emt 0:00:00]} 2. Nf3 {[%emt 0:00:15]} d6 {[%emt 0:00:21]} 3. d4 {[%emt 0:00:32]} cxd4 {[%emt 0:00:25]} 4. Nxd4 {[%emt 0:00:20]} Nf6 {[%emt 0:00:15]} 5. Nc3 {[%emt 0:00:20]} a6 {[%emt 0:00:29]} 6. Bc4 {[%emt 0:00:33]} e6 {[%emt 0:01:12]} 7. Bb3 {[%emt 0:01:04]} Be7 {[%emt 0:08:58]} 8. g4 {[%emt 0:01:25]} h6 {[%emt 0:05:49]} 9. Be3 {[%emt 0:02:03]} b5 {[%emt 0:08:55] LiveBook: 6 Games} 10. f3 {[%emt 0:10:12]} Bd7 {[%emt 0:14:24]} 11. a3 {[%emt 0:12:24]} Nc6 {[%emt 0:01:34]} 12. Qe2 {[%emt 0:07:16]} Rc8 {[%emt 0:04:19]} 13. Nxc6 {[%emt 0:07:46]} Bxc6 {[%emt 0:00:40]} 14. Rg1 $11 {[%emt 0:03:35]} Nd7 {[%emt 0:11:27]} 15. Rd1 {[%emt 0:08:45]} Qc7 {[%emt 0:16:04]} 16. Bd4 {[%emt 0:14:11]} O-O {[%emt 0:02:27]} 17. f4 {[%emt 0:04:42]} e5 {[%emt 0:03:16]} 18. Be3 {[%emt 0:02:04]} exf4 {[%emt 0:02:03]} 19. Bxf4 {[%emt 0:01:48]} Ne5 {[%emt 0:01:45]} 20. Kd2 {[%emt 0:03:34]} d5 {[%emt 0:08:40]} 21. Rgf1 {[%emt 0:07:59]} d4 {[%emt 0:05:12]} 22. Nd5 {[%emt 0:02:06]} Bxd5 {[%emt 0:00:24]} 23. exd5 {[%emt 0:00:58]} Bg5 {[%emt 0:01:01]} 24. Bxg5 {[%emt 0:04:19]} hxg5 {[%emt 0:00:01]} 25. Qe4 {[%emt 0:02:29]} d3 {[%emt 0:00:18]} 26. cxd3 {[%emt 0:00:37]} Rfe8 {[%emt 0:00:10]} 27. Qd4 {[%emt 0:01:07]} Qa5+ {[%emt 0:01:48]} 28. Qb4 {[%emt 0:00:21]} Qb6 {[%emt 0:00:18]} 29. Rde1 {[%emt 0:00:31]} a5 {[%emt 0:00:26]} 30. Qe4 {[%emt 0:01:02]} Nc4+ {[%emt 0:00:08]} 31. dxc4 {[%emt 0:00:24]} Rxe4 {[%emt 0:00:04]} 32. Rxe4 {[%emt 0:00:05]} bxc4 {[%emt 0:00:05]} 33. Bxc4 {[%emt 0:01:11]} Qxb2+ {[%emt 0:00:07]} 0-1

[Event "EYCC Open U12 2018"]
[Site "Riga"]
[Date "2018.08.22"]
[Round "3"]
[White "Razafindratsima, Timothe"]
[Black "Chyzy, Jakub"]
[Result "1-0"]
[ECO "B03"]
[WhiteElo "1978"]
[BlackElo "2143"]
[Annotator "NA"]
[PlyCount "99"]
[EventDate "2018.08.20"]
[EventType "swiss"]
[EventCountry "LAT"]
[SourceTitle "playchess.com"]
[Source "ChessBase"]
[SourceQuality "1"]
[TimeControl "40/5400+30:1800+30"]

1. e4 {[%emt 0:00:00]} Nf6 {[%emt 0:00:00]} 2. e5 {[%emt 0:00:00]} Nd5 {[%emt 0:00:00]} 3. c4 {[%emt 0:00:30]} Nb6 {[%emt 0:00:00]} 4. d4 {[%emt 0:00:09]} d6 {[%emt 0:00:05]} 5. exd6 {[%emt 0:00:25]} exd6 {[%emt 0:00:07]} 6. Nc3 {[%emt 0:00:14]} Be7 {[%emt 0:00:08]} 7. Be2 {[%emt 0:01:24]} O-O {[%emt 0:00:23]} 8. Nf3 {[%emt 0:00:15]} Nc6 {[%emt 0:00:42]} 9. O-O {[%emt 0:00:23]} Bf6 {[%emt 0:00:36]} 10. Be3 {[%emt 0:00:19]} Bf5 {[%emt 0:00:56]} 11. Rc1 {[%emt 0:01:36]} d5 {[%emt 0:07:21]} 12. b3 {[%emt 0:03:02]} dxc4 {[%emt 0:06:17]} 13. bxc4 {[%emt 0:00:13]} Na5 {[%emt 0:01:54]} 14. c5 {[%emt 0:09:50]} Nd5 {[%emt 0:05:11]} 15. Qa4 {[%emt 0:06:20]} Nxc3 $11 {[%emt 0:13:06]} 16. Rxc3 {[%emt 0:00:22]} Nc6 {[%emt 0:00:14]} 17. Rd1 {[%emt 0:10:43]} Ne7 {[%emt 0:07:47]} 18. Rcc1 {[%emt 0:07:47]} Nd5 {[%emt 0:04:14]} 19. Qb3 {[%emt 0:01:40]} Rb8 {[%emt 0:18:41]} 20. Bc4 {[%emt 0:03:00]} Be6 {[%emt 0:01:51]} 21. Qa3 {[%emt 0:03:49]} a6 {[%emt 0:07:15]} 22. Be2 {[%emt 0:04:23]} Re8 {[%emt 0:06:49]} 23. h3 {[%emt 0:14:07]} Qe7 {[%emt 0:04:13]} 24. Bf1 {[%emt 0:01:46]} Nxe3 {[%emt 0:12:15]} 25. Qxe3 {[%emt 0:12:19]} Bxa2 {[%emt 0:01:06]} 26. Qf4 {[%emt 0:02:12]} Bd5 {[%emt 0:00:33]} 27. Bc4 {[%emt 0:00:44]} Qd7 {[%emt 0:01:09]} 28. Bxd5 {[%emt 0:00:18]} Qxd5 {[%emt 0:00:06]} 29. Qxc7 {[%emt 0:00:09]} Rbc8 {[%emt 0:00:29]} 30. Qb6 {[%emt 0:00:36]} Re6 {[%emt 0:00:31]} 31. Qb4 {[%emt 0:00:28]} Rce8 {[%emt 0:00:34]} 32. Rb1 {[%emt 0:00:28]} R6e7 {[%emt 0:00:34]} 33. Qa4 {[%emt 0:03:11]} g6 {[%emt 0:00:44]} 34. Rb6 {[%emt 0:00:15]} Re6 {[%emt 0:00:31]} 35. Rd6 {[%emt 0:00:43]} Qe4 {[%emt 0:00:34]} 36. Re1 {[%emt 0:00:51]} Qf5 {[%emt 0:00:22]} 37. Qxe8+ {[%emt 0:01:05]} Rxe8 {[%emt 0:00:04]} 38. Rxe8+ {[%emt 0:00:05]} Kg7 {[%emt 0:00:07]} 39. d5 {[%emt 0:00:54]} Qb1+ {[%emt 0:01:08]} 40. Kh2 {[%emt 0:00:00]} Qb4 {[%emt 0:00:00]} 41. Rc8 {[%emt 0:12:28]} Be7 {[%emt 0:07:20]} 42. Rb6 {[%emt 0:01:34]} Qf4+ {[%emt 0:01:25]} 43. Kh1 {[%emt 0:00:32]} Qc1+ {[%emt 0:13:42]} 44. Ng1 {[%emt 0:00:48]} Bxc5 {[%emt 0:00:51]} 45. Rxb7 {[%emt 0:01:53]} Qa3 {[%emt 0:02:42]} 46. Rcc7 {[%emt 0:02:28]} Kh6 {[%emt 0:02:16]} 47. Rxf7 {[%emt 0:00:25]} Qa1 {[%emt 0:01:06]} 48. Rxh7+ {[%emt 0:01:31]} Kg5 {[%emt 0:00:04]} 49. Rbf7 {[%emt 0:00:06]} Bd6 {[%emt 0:04:17]} 50. g3 {[%emt 0:00:12]} 1-0

[Event "EYCC Open U12 2018"]
[Site "Riga"]
[Date "2018.08.24"]
[Round "5"]
[White "Murzin, Volodar"]
[Black "Makoveev, Ilya"]
[Result "1/2-1/2"]
[ECO "C00"]
[WhiteElo "2306"]
[BlackElo "2249"]
[Annotator "NA"]
[PlyCount "74"]
[EventDate "2018.08.20"]
[EventType "swiss"]
[EventCountry "LAT"]
[SourceTitle "playchess.com"]
[Source "ChessBase"]
[SourceQuality "1"]
[TimeControl "40/5400+30:1800+30"]

1. e4 {[%emt 0:00:00]} e6 {[%emt 0:00:08]} 2. d3 {[%emt 0:00:00]} d5 {[%emt 0:00:22]} 3. Nd2 {[%emt 0:00:00]} c5 {[%emt 0:00:53]} 4. Ngf3 {[%emt 0:00:06]} Nc6 {[%emt 0:00:10]} 5. g3 {[%emt 0:00:15]} Nf6 {[%emt 0:00:41]} 6. Bg2 {[%emt 0:00:18]} g6 {[%emt 0:00:54]} 7. O-O {[%emt 0:00:20]} Bg7 {[%emt 0:00:05]} 8. Re1 {[%emt 0:00:03]} O-O {[%emt 0:00:07]} 9. c3 {[%emt 0:00:54]} a5 {[%emt 0:01:23]} 10. a4 {[%emt 0:00:31] LiveBook: 57 Games A08: King's Indian Attack} b6 {[%emt 0:00:17]} 11. e5 {[%emt 0:00:34]} Ng4 {[%emt 0:01:31]} 12. d4 {[%emt 0:00:18]} cxd4 {[%emt 0:00:14]} 13. cxd4 {[%emt 0:00:23]} f6 {[%emt 0:00:11]} 14. h3 {[%emt 0:05:14]} Nh6 {[%emt 0:00:29]} 15. Nf1 $146 {[%emt 0:02:30]} ({Predecessor:} 15. b3 Nf5 16. Nf1 fxe5 17. dxe5 Ba6 {0-1 (33) Vega Gutierrez,S (2427)-Grigoriants,S (2568) Caleta 2018}) 15... Nf7 {[%emt 0:02:05]} 16. exf6 {[%emt 0:02:25]} Qxf6 {[%emt 0:00:24]} 17. Be3 {[%emt 0:00:10]} Ba6 {[%emt 0:14:04]} 18. N1h2 {[%emt 0:04:57]} Nb4 {[%emt 0:15:01]} 19. Ra3 {[%emt 0:06:12]} Rac8 {[%emt 0:04:31]} 20. Rc3 {[%emt 0:01:23]} Qe7 {[%emt 0:10:56]} 21. Bf1 {[%emt 0:20:10]} Bxf1 {[%emt 0:11:15]} 22. Nxf1 {[%emt 0:01:05]} Nd6 {[%emt 0:08:43]} 23. N1d2 {[%emt 0:01:37]} Nc4 {[%emt 0:10:23]} 24. Nxc4 {[%emt 0:05:02]} dxc4 {[%emt 0:01:56]} 25. Nd2 {[%emt 0:05:59]} Nd3 {[%emt 0:01:42]} 26. Rf1 {[%emt 0:00:13]} Qb4 {[%emt 0:01:25]} 27. Qc2 {[%emt 0:01:00]} Qxb2 $11 {[%emt 0:00:51]} 28. Nxc4 {[%emt 0:02:34]} Qxc2 {[%emt 0:00:08]} 29. Rxc2 {[%emt 0:00:01]} Nb4 {[%emt 0:10:35]} 30. Rcc1 {[%emt 0:00:07]} Nd3 {[%emt 0:00:38]} 31. Rc2 {[%emt 0:00:13]} Rfd8 {[%emt 0:02:56]} 32. Rd1 {[%emt 0:01:20]} Nb4 {[%emt 0:00:23]} 33. Rcc1 {[%emt 0:00:02]} Na2 {[%emt 0:00:06]} 34. Rc2 {[%emt 0:02:48]} Nb4 {[%emt 0:00:32]} 35. Rcc1 {[%emt 0:00:01]} Na2 {[%emt 0:00:23]} 36. Rc2 {[%emt 0:00:01]} Nb4 {[%emt 0:00:10]} 37. Rcc1 {[%emt 0:00:02]} Na2 {[%emt 0:00:16]} 1/2-1/2

[Event "EYCC Open U12 2018"]
[Site "Riga"]
[Date "2018.08.24"]
[Round "5"]
[White "Safin, Robert"]
[Black "Silich, Yahor"]
[Result "1/2-1/2"]
[ECO "E67"]
[WhiteElo "2156"]
[BlackElo "2043"]
[Annotator "NA"]
[PlyCount "94"]
[EventDate "2018.08.20"]
[EventType "swiss"]
[EventCountry "LAT"]
[SourceTitle "playchess.com"]
[Source "ChessBase"]
[SourceQuality "1"]
[TimeControl "40/5400+30:1800+30"]

1. d4 {[%emt 0:00:00]} Nf6 {[%emt 0:00:00]} 2. Nf3 {[%emt 0:00:00]} g6 {[%emt 0:00:06]} 3. g3 {[%emt 0:00:00]} Bg7 {[%emt 0:00:09]} 4. Bg2 {[%emt 0:00:00]} O-O {[%emt 0:00:27]} 5. c4 {[%emt 0:00:00]} d6 {[%emt 0:00:10]} 6. Nc3 {[%emt 0:00:03]} Nbd7 {[%emt 0:00:31]} 7. O-O {[%emt 0:00:06]} e5 {[%emt 0:00:13]} 8. dxe5 {[%emt 0:00:04]} dxe5 {[%emt 0:00:41]} 9. Qc2 {[%emt 0:00:50]} c6 {[%emt 0:01:19]} 10. Rd1 {[%emt 0:01:36]} Qe7 {[%emt 0:01:17]} 11. e4 {[%emt 0:03:55]} Nc5 {[%emt 0:04:19]} 12. Be3 {[%emt 0:03:37]} Bg4 {[%emt 0:02:50]} 13. h3 {[%emt 0:02:55]} Bxf3 {[%emt 0:01:54]} 14. Bxf3 {[%emt 0:00:07]} Ne6 {[%emt 0:00:50]} 15. Bg2 {[%emt 0:01:42]} Nd7 {[%emt 0:03:30]} 16. Rd2 {[%emt 0:06:29]} Ndc5 {[%emt 0:07:37]} 17. b4 {[%emt 0:04:41]} Nd4 {[%emt 0:02:27]} 18. Qb2 $15 {[%emt 0:09:21]} Nce6 {[%emt 0:01:46]} 19. Rad1 {[%emt 0:13:50]} Rfd8 {[%emt 0:04:48]} 20. c5 {[%emt 0:05:26]} a5 {[%emt 0:03:11]} 21. a3 {[%emt 0:00:35]} axb4 {[%emt 0:00:26]} 22. axb4 {[%emt 0:00:22]} Qc7 {[%emt 0:05:39]} 23. Kh1 {[%emt 0:08:48]} h5 {[%emt 0:15:53]} 24. Bf1 {[%emt 0:01:51]} h4 {[%emt 0:02:45]} 25. Bc4 {[%emt 0:00:46]} Qe7 {[%emt 0:03:45]} 26. Kg2 {[%emt 0:06:25]} Qf6 {[%emt 0:02:56]} 27. Rd3 {[%emt 0:10:37]} Ng5 {[%emt 0:05:54]} 28. Bxg5 {[%emt 0:11:23]} Qxg5 {[%emt 0:00:17]} 29. Ne2 {[%emt 0:00:28]} Qe7 {[%emt 0:03:30]} 30. Nxd4 {[%emt 0:02:17]} Rxd4 {[%emt 0:00:10]} 31. Qb3 {[%emt 0:00:58]} Rad8 {[%emt 0:01:11]} 32. Rf3 {[%emt 0:04:07]} Bf6 {[%emt 0:01:14]} 33. Re1 {[%emt 0:00:05]} Kg7 {[%emt 0:01:57]} 34. Ree3 {[%emt 0:00:07]} Rf8 {[%emt 0:02:49]} 35. Rd3 {[%emt 0:01:13]} Rfd8 {[%emt 0:03:52]} 36. g4 {[%emt 0:01:59]} Rxd3 {[%emt 0:00:33]} 37. Rxd3 {[%emt 0:00:22]} Rxd3 {[%emt 0:01:01]} 38. Qxd3 {[%emt 0:00:10]} Qd8 {[%emt 0:00:59]} 39. Qf3 {[%emt 0:01:00]} Qd7 {[%emt 0:01:19]} 40. Qc3 {[%emt 0:00:00]} Qe7 {[%emt 0:00:00]} 41. Bb3 {[%emt 0:03:22]} Bg5 {[%emt 0:04:05]} 42. b5 {[%emt 0:02:12]} Bf4 {[%emt 0:01:32]} 43. Qc4 {[%emt 0:06:26]} Qd7 {[%emt 0:01:13]} 44. b6 {[%emt 0:06:51]} Kf6 {[%emt 0:03:01]} 45. Ba4 {[%emt 0:04:16]} Ke7 {[%emt 0:04:19]} 46. Bb3 {[%emt 0:01:58]} Kf6 {[%emt 0:00:01]} 47. Ba4 {[%emt 0:02:54]} Ke7 {[%emt 0:00:51]} 1/2-1/2

[Event "EYCC Open U12 2018"]
[Site "Riga"]
[Date "2018.08.24"]
[Round "5"]
[White "Tyurin, Artem"]
[Black "Siniauski, Artsiom"]
[Result "0-1"]
[ECO "A50"]
[WhiteElo "2002"]
[BlackElo "2081"]
[Annotator "NA"]
[PlyCount "84"]
[EventDate "2018.08.20"]
[EventType "swiss"]
[EventCountry "LAT"]
[SourceTitle "playchess.com"]
[Source "ChessBase"]
[SourceQuality "1"]
[TimeControl "40/5400+30:1800+30"]

1. d4 {[%emt 0:00:00]} Nf6 {[%emt 0:00:00]} 2. c4 {[%emt 0:00:02]} c6 {[%emt 0:00:00]} 3. Nc3 {[%emt 0:00:21]} d5 {[%emt 0:00:01]} 4. cxd5 {[%emt 0:00:19]} cxd5 {[%emt 0:00:04]} 5. Bf4 {[%emt 0:00:37]} Qb6 {[%emt 0:00:17]} 6. Qd2 {[%emt 0:12:34]} Nc6 {[%emt 0:00:38]} 7. e3 {[%emt 0:02:42]} Bf5 {[%emt 0:00:43]} 8. Bb5 {[%emt 0:10:43]} e6 {[%emt 0:01:46]} 9. a3 {[%emt 0:02:16]} Be7 {[%emt 0:10:28]} 10. Nge2 $15 {[%emt 0:05:35]} O-O {[%emt 0:03:43]} 11. O-O {[%emt 0:00:57]} Na5 {[%emt 0:01:31]} 12. Nc1 {[%emt 0:12:52]} Rac8 {[%emt 0:03:24]} 13. b4 {[%emt 0:09:13]} Nc4 {[%emt 0:00:46]} 14. Bxc4 {[%emt 0:07:59]} Rxc4 {[%emt 0:00:50]} 15. N1e2 {[%emt 0:02:55]} Nh5 {[%emt 0:07:08]} 16. Be5 {[%emt 0:03:07]} f6 {[%emt 0:01:05]} 17. Bg3 {[%emt 0:05:48]} Nxg3 {[%emt 0:07:22]} 18. Nxg3 {[%emt 0:01:33]} Bg6 {[%emt 0:00:08]} 19. f4 {[%emt 0:00:48]} Rfc8 {[%emt 0:00:33]} 20. Rac1 {[%emt 0:04:47]} a5 {[%emt 0:06:23]} 21. f5 {[%emt 0:01:39]} axb4 {[%emt 0:02:25]} 22. fxg6 {[%emt 0:01:06]} bxc3 {[%emt 0:00:53]} 23. gxh7+ {[%emt 0:00:06]} Kh8 {[%emt 0:01:12]} 24. Qd3 {[%emt 0:04:03]} f5 {[%emt 0:05:37]} 25. Rc2 {[%emt 0:01:19]} Bxa3 {[%emt 0:05:24]} 26. Nh5 {[%emt 0:01:52]} Bd6 {[%emt 0:01:01]} 27. g4 {[%emt 0:03:42]} g6 {[%emt 0:03:50]} 28. Nf6 {[%emt 0:01:56]} Qd8 {[%emt 0:03:36]} 29. g5 {[%emt 0:02:01]} Be7 {[%emt 0:02:35]} 30. Ng4 {[%emt 0:00:18]} Bd6 {[%emt 0:06:50]} 31. Nf6 {[%emt 0:00:18]} b5 {[%emt 0:00:46]} 32. h4 {[%emt 0:00:44]} b4 {[%emt 0:00:48]} 33. Rb1 {[%emt 0:00:28]} Be7 {[%emt 0:00:17]} 34. Ng4 {[%emt 0:00:27]} fxg4 {[%emt 0:06:37]} 35. Qxg6 {[%emt 0:00:04]} Qd6 {[%emt 0:00:19]} 36. Rf2 {[%emt 0:01:18]} e5 {[%emt 0:00:21]} 37. Rf6 {[%emt 0:01:24]} Bxf6 {[%emt 0:01:41]} 38. gxf6 {[%emt 0:00:12]} R4c7 {[%emt 0:00:33]} 39. Rf1 {[%emt 0:00:45]} c2 {[%emt 0:01:20]} 40. Kg2 {[%emt 0:00:00]} Rxh7 {[%emt 0:00:00]} 41. dxe5 {[%emt 0:02:16]} Qxe5 {[%emt 0:01:33]} 42. f7 {[%emt 0:00:13]} Qe4+ {[%emt 0:01:43]} 0-1